[Event "MČR v bleskovém šachu družstev 2019"]
[Site "Teplice, Czech Republic"]
[Date "2019.09.14"]
[Round "2.2"]
[White "Markovic, Milan"]
[Black "Polak, Tomas"]
[Result "0-1"]
[TimeControl "3 mim. + 2 s"]
[BlackTitle "GM"]
[WhiteFideId "305103"]
[BlackFideId "300560"]
[WhiteElo "2113"]
[BlackElo "2510"]

1. e4 {[%emt 00:00:09]} c6 {[%clk 00:02:58]} {[%emt 00:00:02]} 2. d4 {[%clk
00:03:00]} {[%emt 00:00:02]} d5 {[%clk 00:02:59]} 3. e5 {[%clk 00:03:01]} Bf5
{[%clk 00:03:00]} {[%emt 00:00:03]} 4. h4 {[%clk 00:03:02]} h5 {[%clk
00:03:01]} {[%emt 00:00:01]} 5. Bg5 {[%clk 00:03:02]} {[%emt 00:00:02]} Qb6
{[%clk 00:02:55]} {[%emt 00:00:07]} 6. Bd3 {[%clk 00:03:03]} {[%emt 00:00:01]}
Bxd3 {[%clk 00:02:54]} {[%emt 00:00:03]} 7. Qxd3 {[%clk 00:03:04]} {[%emt
00:00:03]} e6 {[%clk 00:02:55]} 8. Nd2 {[%clk 00:03:01]} {[%emt 00:00:04]} Nd7
{[%clk 00:02:52]} {[%emt 00:00:05]} 9. c4 {[%clk 00:03:02]} {[%emt 00:00:01]}
dxc4 {[%clk 00:02:48]} {[%emt 00:00:06]} 10. Nxc4 {[%clk 00:03:00]} {[%emt
00:00:03]} Qa6 {[%clk 00:02:49]} 11. Nf3 {[%clk 00:02:21]} {[%emt 00:00:42]}
Nh6 {[%clk 00:02:46]} {[%emt 00:00:06]} 12. O-O {[%clk 00:02:14]} {[%emt
00:00:08]} Nf5 {[%clk 00:02:47]} {[%emt 00:00:02]} 13. Rfc1 {[%clk 00:01:36]}
{[%emt 00:00:40]} Nb6 {[%clk 00:02:38]} {[%emt 00:00:12]} 14. b3 {[%clk
00:01:33]} {[%emt 00:00:04]} Nd5 {[%clk 00:02:38]} {[%emt 00:00:02]} 15. Qe4
{[%clk 00:01:16]} {[%emt 00:00:20]} Ba3 {[%clk 00:01:54]} {[%emt 00:00:44]} 16.
Rc2 {[%clk 00:01:17]} {[%emt 00:00:01]} O-O {[%clk 00:01:44]} {[%emt 00:00:12]}
17. Ne3 {[%clk 00:01:13]} {[%emt 00:00:06]} Nfxe3 {[%clk 00:01:32]} {[%emt
00:00:14]} 18. fxe3 {[%clk 00:01:06]} {[%emt 00:00:09]} Rae8 {[%clk 00:01:30]}
{[%emt 00:00:04]} 19. Rf1 {[%clk 00:00:59]} {[%emt 00:00:09]} Nb4 {[%clk
00:01:04]} {[%emt 00:00:28]} 20. Rcf2 {[%clk 00:00:58]} {[%emt 00:00:04]} Qd3
{[%clk 00:01:02]} {[%emt 00:00:03]} 21. Qf4 {[%emt 00:00:36]} Qg6 {[%clk
00:00:56]} {[%emt 00:00:06]} 22. Ne1 {[%clk 00:00:00]} {[%emt 00:00:27]} 0-1

[Event "MČR v bleskovém šachu družstev 2019"]
[Site "Teplice, Czech Republic"]
[Date "2019.09.14"]
[Round "2.3"]
[White "Stocek, Jiri"]
[Black "Srba, Milan"]
[Result "1-0"]
[TimeControl "3 mim. + 2 s"]
[WhiteTitle "GM"]
[WhiteFideId "304760"]
[BlackFideId "321575"]
[WhiteElo "2505"]
[BlackElo "2195"]

1. e4 {[%clk 00:03:02]} e6 {[%clk 00:03:02]} {[%emt 00:00:02]} 2. d4 {[%clk
00:03:03]} {[%emt 00:00:01]} d5 {[%clk 00:03:03]} {[%emt 00:00:03]} 3. Nc3
{[%clk 00:03:03]} Nf6 {[%clk 00:03:01]} {[%emt 00:00:03]} 4. Bg5 {[%clk
00:03:03]} {[%emt 00:00:03]} Bb4 {[%clk 00:02:59]} {[%emt 00:00:03]} 5. e5
{[%clk 00:03:02]} {[%emt 00:00:04]} h6 {[%clk 00:02:57]} {[%emt 00:00:03]} 6.
Bh4 {[%clk 00:02:50]} {[%emt 00:00:14]} g5 {[%clk 00:02:56]} {[%emt 00:00:03]}
7. Bg3 {[%clk 00:02:50]} Ne4 {[%clk 00:02:54]} {[%emt 00:00:06]} 8. Nge2 {[%clk
00:02:50]} c5 {[%clk 00:02:53]} {[%emt 00:00:04]} 9. a3 {[%clk 00:02:41]}
{[%emt 00:00:11]} Ba5 {[%clk 00:01:55]} {[%emt 00:01:00]} 10. b4 {[%clk
00:01:51]} {[%emt 00:00:52]} cxb4 {[%clk 00:01:53]} {[%emt 00:00:04]} 11. Nxe4
{[%clk 00:01:49]} {[%emt 00:00:03]} dxe4 {[%clk 00:01:53]} {[%emt 00:00:03]} 12.
axb4 {[%clk 00:01:48]} {[%emt 00:00:03]} Bxb4+ {[%clk 00:01:51]} {[%emt
00:00:04]} 13. c3 {[%clk 00:01:49]} {[%emt 00:00:01]} Be7 {[%clk 00:01:34]}
{[%emt 00:00:19]} 14. Qc2 {[%clk 00:01:43]} {[%emt 00:00:08]} Bd7 {[%clk
00:01:08]} {[%emt 00:00:28]} 15. Qxe4 {[%clk 00:01:34]} {[%emt 00:00:11]} Bc6
{[%clk 00:01:09]} 16. Qe3 {[%clk 00:01:30]} {[%emt 00:00:06]} Qb6 {[%clk
00:00:39]} {[%emt 00:00:32]} 17. h4 {[%clk 00:01:19]} {[%emt 00:00:13]} g4
{[%clk 00:00:39]} {[%emt 00:00:03]} 18. Nf4 {[%clk 00:01:13]} {[%emt 00:00:06]}
Qb2 {[%clk 00:00:25]} {[%emt 00:00:16]} 19. Rd1 {[%clk 00:00:40]} {[%emt
00:00:35]} Nd7 {[%clk 00:00:26]} {[%emt 00:00:02]} 20. Be2 {[%clk 00:00:34]}
{[%emt 00:00:08]} Nb6 {[%clk 00:00:24]} {[%emt 00:00:04]} 21. O-O {[%clk
00:00:27]} {[%emt 00:00:08]} O-O-O {[%clk 00:00:23]} {[%emt 00:00:03]} 22. Ra1
{[%clk 00:00:19]} {[%emt 00:00:10]} Na4 {[%clk 00:00:13]} {[%emt 00:00:13]} 23.
Rfc1 {[%clk 00:00:10]} {[%emt 00:00:11]} a6 {[%clk 00:00:12]} {[%emt 00:00:03]}
24. Bxg4 {[%clk 00:00:07]} {[%emt 00:00:04]} Rhg8 {[%clk 00:00:12]} {[%emt
00:00:02]} 25. Bf3 {[%clk 00:00:07]} {[%emt 00:00:01]} Bxf3 {[%clk 00:00:08]}
{[%emt 00:00:07]} 26. Qxf3 {[%clk 00:00:08]} {[%emt 00:00:02]} 1-0

[Event "MČR v bleskovém šachu družstev 2019"]
[Site "Teplice, Czech Republic"]
[Date "2019.09.14"]
[Round "2.4"]
[White "Vymazal, Bronislav"]
[Black "Svatos, Jan"]
[Result "0-1"]
[TimeControl "3 mim. + 2 s"]
[BlackTitle "FM"]
[WhiteFideId "318396"]
[BlackFideId "304174"]
[WhiteElo "2309"]
[BlackElo "2183"]

1. e4 {[%clk 00:03:02]} b6 {[%clk 00:03:02]} {[%emt 00:00:02]} 2. d4 {[%clk
00:03:03]} {[%emt 00:00:01]} Bb7 {[%clk 00:03:03]} 3. Nc3 {[%clk 00:03:04]}
{[%emt 00:00:03]} e6 {[%clk 00:03:05]} 4. Nf3 {[%clk 00:03:04]} Bb4 {[%clk
00:03:06]} 5. Bd3 {[%clk 00:03:02]} {[%emt 00:00:06]} Nf6 {[%clk 00:03:07]} 6.
Qe2 {[%clk 00:03:03]} {[%emt 00:00:02]} d5 {[%clk 00:03:08]} 7. e5 {[%clk
00:02:41]} {[%emt 00:00:25]} Ne4 {[%clk 00:03:09]} 8. O-O {[%clk 00:02:26]}
{[%emt 00:00:17]} Nxc3 {[%clk 00:03:08]} {[%emt 00:00:04]} 9. bxc3 {[%clk
00:02:27]} Bxc3 {[%clk 00:03:09]} {[%emt 00:00:01]} 10. Ba3 {[%clk 00:02:28]}
{[%emt 00:00:01]} Bxa1 {[%clk 00:02:39]} {[%emt 00:00:32]} 11. Rxa1 {[%clk
00:02:30]} Nd7 {[%clk 00:02:39]} {[%emt 00:00:01]} 12. h4 {[%clk 00:02:31]}
{[%emt 00:00:01]} h6 {[%clk 00:02:40]} {[%emt 00:00:01]} 13. Qe3 {[%clk
00:01:55]} {[%emt 00:00:37]} Rc8 {[%clk 00:02:08]} {[%emt 00:00:34]} 14. Bb5
{[%clk 00:01:20]} {[%emt 00:00:38]} c6 {[%emt 00:00:37]} 15. Ba4 b5 16. Bb3 c5
{[%clk 00:01:36]} {[%emt 00:00:01]} 17. dxc5 {[%clk 00:01:24]} {[%emt
00:00:01]} Qa5 {[%clk 00:01:29]} {[%emt 00:00:10]} 18. c6 {[%clk 00:01:12]}
{[%emt 00:00:14]} Qxa3 {[%clk 00:01:05]} {[%emt 00:00:24]} 19. cxb7 {[%clk
00:00:35]} {[%emt 00:00:39]} Rb8 {[%clk 00:01:06]} {[%emt 00:00:01]} 20. Qf4
{[%clk 00:00:16]} {[%emt 00:00:21]} O-O {[%clk 00:00:58]} {[%emt 00:00:10]} 21.
Rd1 {[%clk 00:00:15]} {[%emt 00:00:03]} Rxb7 {[%clk 00:00:50]} {[%emt
00:00:10]} 22. Nd4 {[%clk 00:00:15]} {[%emt 00:00:03]} Nc5 {[%clk 00:00:40]}
{[%emt 00:00:11]} 23. Re1 {[%clk 00:00:13]} {[%emt 00:00:05]} a5 {[%clk
00:00:32]} {[%emt 00:00:10]} 24. c3 {[%clk 00:00:07]} {[%emt 00:00:08]} Nd3
{[%clk 00:00:25]} {[%emt 00:00:09]} 25. Qe3 {[%clk 00:00:04]} {[%emt 00:00:05]}
Nxe1 {[%clk 00:00:25]} {[%emt 00:00:01]} 26. Qxe1 {[%clk 00:00:05]} {[%emt
00:00:01]} a4 {[%clk 00:00:24]} {[%emt 00:00:03]} 27. Bc2 {[%clk 00:00:06]}
{[%emt 00:00:01]} Rc8 {[%clk 00:00:24]} {[%emt 00:00:01]} 28. Ne2 {[%clk
00:00:08]} b4 {[%clk 00:00:25]} {[%emt 00:00:01]} 29. Qd2 {[%clk 00:00:08]}
{[%emt 00:00:01]} Rxc3 {[%clk 00:00:24]} {[%emt 00:00:03]} 0-1

[Event "MČR v bleskovém šachu družstev 2019"]
[Site "Teplice, Czech Republic"]
[Date "2019.09.14"]
[Round "2.5"]
[White "Soural, Jan"]
[Black "Jirovsky, Milos"]
[Result "0-1"]
[TimeControl "3 mim. + 2 s"]
[BlackTitle "GM"]
[WhiteFideId "311928"]
[BlackFideId "303224"]
[WhiteElo "2107"]
[BlackElo "2499"]

1. d4 {[%clk 00:03:03]} d5 {[%clk 00:03:04]} {[%emt 00:00:01]} 2. c4 {[%clk
00:03:04]} {[%emt 00:00:01]} e6 {[%clk 00:03:05]} 3. Nf3 {[%clk 00:03:04]}
{[%emt 00:00:02]} Nf6 {[%clk 00:03:06]} 4. g3 {[%clk 00:03:05]} dxc4 {[%clk
00:03:04]} {[%emt 00:00:06]} 5. Bg2 Nc6 6. O-O {[%clk 00:03:02]} {[%emt
00:00:06]} Rb8 {[%clk 00:03:07]} 7. Bf4 {[%clk 00:02:14]} {[%emt 00:00:49]} Nd5
{[%clk 00:02:50]} {[%emt 00:00:19]} 8. Bd2 {[%clk 00:02:10]} {[%emt 00:00:07]}
b5 {[%clk 00:02:44]} {[%emt 00:00:07]} 9. Nc3 {[%clk 00:02:03]} {[%emt
00:00:08]} Be7 {[%clk 00:02:30]} {[%emt 00:00:16]} 10. e4 {[%clk 00:02:00]}
{[%emt 00:00:05]} Nxc3 {[%clk 00:02:30]} {[%emt 00:00:02]} 11. bxc3 {[%clk
00:02:02]} {[%emt 00:00:02]} O-O {[%clk 00:02:29]} {[%emt 00:00:02]} 12. h4
{[%clk 00:01:52]} {[%emt 00:00:12]} Bb7 {[%clk 00:02:28]} {[%emt 00:00:02]} 13.
Qe2 {[%clk 00:01:48]} {[%emt 00:00:06]} a6 {[%clk 00:02:25]} {[%emt 00:00:05]}
14. Rad1 {[%clk 00:01:45]} {[%emt 00:00:05]} Re8 {[%clk 00:02:18]} {[%emt
00:00:10]} 15. Rfe1 {[%clk 00:01:33]} {[%emt 00:00:14]} Ba8 {[%clk 00:02:14]}
{[%emt 00:00:06]} 16. e5 {[%clk 00:01:28]} {[%emt 00:00:07]} Qd7 {[%clk
00:02:02]} {[%emt 00:00:14]} 17. Ng5 {[%clk 00:01:25]} {[%emt 00:00:04]} Bxg5
{[%clk 00:02:00]} {[%emt 00:00:04]} 18. hxg5 {[%clk 00:01:22]} {[%emt
00:00:05]} Ne7 {[%clk 00:01:58]} {[%emt 00:00:06]} 19. Be4 {[%clk 00:01:13]}
{[%emt 00:00:09]} Bxe4 {[%clk 00:01:54]} {[%emt 00:00:06]} 20. Qxe4 {[%clk
00:01:14]} Qd5 {[%clk 00:01:55]} 21. Bc1 {[%clk 00:01:04]} {[%emt 00:00:12]}
Qxe4 {[%clk 00:01:54]} {[%emt 00:00:03]} 22. Rxe4 {[%clk 00:01:05]} {[%emt
00:00:02]} Nd5 {[%clk 00:01:55]} 23. Bb2 {[%clk 00:01:00]} {[%emt 00:00:07]} b4
{[%clk 00:01:44]} {[%emt 00:00:14]} 24. Rc1 {[%clk 00:00:57]} {[%emt 00:00:04]}
b3 {[%clk 00:01:40]} {[%emt 00:00:06]} 25. a3 {[%clk 00:00:55]} {[%emt
00:00:05]} Nb6 {[%clk 00:01:37]} {[%emt 00:00:06]} 26. Kf1 {[%clk 00:00:49]}
{[%emt 00:00:06]} Na4 {[%clk 00:01:38]} {[%emt 00:00:01]} 27. Rb1 {[%clk
00:00:49]} {[%emt 00:00:01]} Red8 {[%clk 00:01:36]} {[%emt 00:00:04]} 28. f4
{[%clk 00:00:48]} {[%emt 00:00:03]} g6 {[%clk 00:01:36]} {[%emt 00:00:02]} 29.
Ke2 {[%clk 00:00:49]} {[%emt 00:00:01]} Rd5 {[%clk 00:01:32]} {[%emt 00:00:06]}
30. Re3 {[%clk 00:00:34]} {[%emt 00:00:17]} c5 {[%clk 00:01:29]} {[%emt
00:00:05]} 31. dxc5 {[%clk 00:00:33]} {[%emt 00:00:04]} Nxc5 {[%clk 00:01:29]}
{[%emt 00:00:02]} 32. g4 {[%clk 00:00:26]} {[%emt 00:00:09]} Rbd8 {[%clk
00:01:29]} {[%emt 00:00:01]} 0-1

[Event "MČR v bleskovém šachu družstev 2019"]
[Site "Teplice, Czech Republic"]
[Date "2019.09.14"]
[Round "2.6"]
[White "Sokolov, Alexander"]
[Black "Vokoun, Jan"]
[Result "1-0"]
[TimeControl "3 mim. + 2 s"]
[WhiteTitle "FM"]
[BlackTitle "FM"]
[WhiteFideId "4119177"]
[BlackFideId "301647"]
[WhiteElo "2417"]
[BlackElo "2123"]

1. e4 {[%clk 00:03:02]} c5 {[%clk 00:03:03]} {[%emt 00:00:02]} 2. Nf3 {[%clk
00:03:03]} {[%emt 00:00:02]} Nc6 {[%clk 00:03:00]} {[%emt 00:00:03]} 3. d4
{[%clk 00:03:04]} {[%emt 00:00:01]} cxd4 4. Nxd4 {[%clk 00:03:05]} Qb6 {[%clk
00:03:03]} 5. Nb3 {[%clk 00:03:06]} {[%emt 00:00:01]} Nf6 {[%clk 00:03:03]}
{[%emt 00:00:02]} 6. Nc3 {[%clk 00:03:06]} {[%emt 00:00:01]} e6 {[%clk
00:03:03]} {[%emt 00:00:02]} 7. Qe2 {[%clk 00:02:52]} {[%emt 00:00:16]} d6
{[%clk 00:02:41]} {[%emt 00:00:25]} 8. Be3 {[%clk 00:02:53]} Qc7 {[%clk
00:02:42]} 9. O-O-O {[%clk 00:02:52]} {[%emt 00:00:04]} a6 {[%clk 00:02:40]}
{[%emt 00:00:04]} 10. g4 {[%clk 00:02:53]} h6 {[%clk 00:02:40]} {[%emt
00:00:03]} 11. h4 {[%clk 00:02:51]} {[%emt 00:00:03]} Ne5 {[%clk 00:02:11]}
{[%emt 00:00:32]} 12. f3 {[%clk 00:02:30]} {[%emt 00:00:21]} b5 {[%clk
00:01:43]} {[%emt 00:00:29]} 13. Bg2 {[%clk 00:02:32]} Nc4 {[%clk 00:01:34]}
{[%emt 00:00:12]} 14. g5 {[%clk 00:02:30]} {[%emt 00:00:05]} Nxe3 {[%clk
00:01:19]} {[%emt 00:00:15]} 15. Qxe3 {[%clk 00:02:25]} {[%emt 00:00:07]} Nd7
{[%clk 00:01:15]} {[%emt 00:00:06]} 16. f4 {[%clk 00:02:20]} {[%emt 00:00:08]}
Bb7 {[%clk 00:01:10]} {[%emt 00:00:06]} 17. g6 {[%clk 00:01:56]} {[%emt
00:00:26]} fxg6 {[%clk 00:00:45]} {[%emt 00:00:28]} 18. Qh3 {[%clk 00:01:51]}
{[%emt 00:00:07]} Kf7 {[%clk 00:00:23]} {[%emt 00:00:24]} 19. f5 {[%clk
00:01:51]} {[%emt 00:00:03]} Ne5 {[%clk 00:00:06]} {[%emt 00:00:17]} 20. fxe6+
{[%clk 00:01:50]} {[%emt 00:00:03]} Kg8 {[%clk 00:00:00]} {[%emt 00:00:06]} 21.
Nd5 {[%clk 00:01:50]} {[%emt 00:00:03]} 1-0

[Event "MČR v bleskovém šachu družstev 2019"]
[Site "Teplice, Czech Republic"]
[Date "2019.09.14"]
[Round "2.7"]
[White "Postupa, Martin"]
[Black "Dolezal, Radoslav"]
[Result "0-1"]
[TimeControl "3 mim. + 2 s"]
[BlackTitle "IM"]
[WhiteFideId "325210"]
[BlackFideId "304735"]
[WhiteElo "1958"]
[BlackElo "2359"]

1. e4 {[%clk 00:03:03]} c6 {[%clk 00:03:01]} {[%emt 00:00:04]} 2. g3 {[%clk
00:03:02]} {[%emt 00:00:03]} d5 {[%clk 00:03:01]} {[%emt 00:00:02]} 3. exd5
{[%clk 00:03:02]} {[%emt 00:00:02]} cxd5 {[%clk 00:03:02]} {[%emt 00:00:02]} 4.
Bg2 {[%clk 00:03:03]} Nc6 {[%clk 00:03:02]} {[%emt 00:00:01]} 5. d4 {[%clk
00:03:04]} {[%emt 00:00:01]} Nf6 {[%clk 00:02:45]} {[%emt 00:00:19]} 6. c3
{[%clk 00:03:04]} {[%emt 00:00:02]} Bg4 {[%clk 00:02:40]} {[%emt 00:00:07]} 7.
f3 {[%clk 00:03:05]} {[%emt 00:00:01]} Bf5 {[%clk 00:02:41]} {[%emt 00:00:02]}
8. Bf4 {[%clk 00:03:02]} {[%emt 00:00:03]} e6 {[%clk 00:02:39]} {[%emt
00:00:04]} 9. Ne2 {[%clk 00:03:00]} {[%emt 00:00:04]} h5 {[%clk 00:02:30]}
{[%emt 00:00:11]} 10. h4 {[%clk 00:03:01]} {[%emt 00:00:01]} Bd6 {[%clk
00:02:11]} {[%emt 00:00:21]} 11. Bxd6 {[%clk 00:03:01]} Qxd6 {[%clk 00:02:13]}
12. O-O {[%clk 00:03:01]} {[%emt 00:00:01]} O-O {[%clk 00:02:13]} {[%emt
00:00:02]} 13. Na3 {[%clk 00:02:57]} {[%emt 00:00:06]} a6 {[%clk 00:02:12]}
{[%emt 00:00:03]} 14. Kh2 {[%clk 00:02:56]} {[%emt 00:00:02]} b5 {[%clk
00:02:11]} {[%emt 00:00:03]} 15. Nc2 {[%clk 00:02:57]} {[%emt 00:00:03]} Rab8
{[%clk 00:02:11]} {[%emt 00:00:01]} 16. a3 {[%clk 00:02:57]} {[%emt 00:00:01]}
a5 {[%clk 00:02:11]} {[%emt 00:00:02]} 17. Ne3 {[%clk 00:02:58]} {[%emt
00:00:03]} Bg6 {[%clk 00:02:10]} {[%emt 00:00:02]} 18. Nf4 {[%clk 00:02:55]}
{[%emt 00:00:06]} Ne7 {[%clk 00:02:08]} {[%emt 00:00:03]} 19. Nxg6 {[%clk
00:02:50]} {[%emt 00:00:07]} Nxg6 {[%clk 00:02:09]} {[%emt 00:00:03]} 20. Kh3
{[%clk 00:02:42]} {[%emt 00:00:08]} Rfc8 {[%clk 00:01:52]} {[%emt 00:00:19]} 21.
f4 {[%clk 00:02:37]} {[%emt 00:00:07]} b4 {[%clk 00:01:42]} {[%emt 00:00:13]}
22. axb4 {[%clk 00:02:32]} {[%emt 00:00:07]} axb4 {[%clk 00:01:43]} 23. Rc1
{[%clk 00:02:33]} {[%emt 00:00:01]} bxc3 {[%clk 00:01:44]} {[%emt 00:00:01]} 24.
bxc3 {[%clk 00:02:33]} {[%emt 00:00:01]} Ne7 {[%clk 00:01:37]} {[%emt
00:00:10]} 25. Bf3 {[%clk 00:02:27]} {[%emt 00:00:07]} g6 {[%clk 00:01:31]}
{[%emt 00:00:08]} 26. c4 {[%clk 00:02:10]} {[%emt 00:00:20]} Qa3 {[%clk
00:01:05]} {[%emt 00:00:28]} 27. Re1 {[%clk 00:01:58]} {[%emt 00:00:14]} Rb3
{[%clk 00:00:47]} {[%emt 00:00:21]} 28. Ra1 {[%clk 00:01:40]} {[%emt 00:00:20]}
Qb4 {[%clk 00:00:31]} {[%emt 00:00:17]} 29. c5 {[%clk 00:01:29]} {[%emt
00:00:13]} Nc6 {[%clk 00:00:26]} {[%emt 00:00:07]} 30. Nc2 {[%clk 00:01:24]}
{[%emt 00:00:07]} Qb7 {[%clk 00:00:15]} {[%emt 00:00:13]} 31. Re3 {[%clk
00:01:16]} {[%emt 00:00:10]} Kg7 {[%clk 00:00:16]} {[%emt 00:00:02]} 32. Rxb3
{[%clk 00:01:12]} {[%emt 00:00:06]} Qxb3 {[%clk 00:00:17]} {[%emt 00:00:01]} 33.
Rb1 {[%clk 00:01:14]} Qc3 {[%clk 00:00:15]} {[%emt 00:00:04]} 34. Rb6 {[%clk
00:01:11]} {[%emt 00:00:04]} Rc7 {[%clk 00:00:10]} {[%emt 00:00:07]} 35. Ra6
{[%clk 00:00:48]} {[%emt 00:00:25]} Na5 {[%clk 00:00:09]} {[%emt 00:00:03]} 36.
Qe1 {[%clk 00:00:40]} {[%emt 00:00:10]} Qxf3 {[%clk 00:00:08]} {[%emt
00:00:04]} 37. Rxa5 {[%clk 00:00:40]} {[%emt 00:00:01]} Rb7 {[%clk 00:00:08]}
{[%emt 00:00:02]} 38. Ra3 {[%clk 00:00:40]} {[%emt 00:00:02]} Qg4+ {[%clk
00:00:06]} {[%emt 00:00:04]} 39. Kg2 {[%clk 00:00:35]} {[%emt 00:00:05]} Rb2
{[%clk 00:00:07]} {[%emt 00:00:02]} 40. Qc3 {[%clk 00:00:32]} {[%emt 00:00:06]}
Qe2+ {[%clk 00:00:08]} {[%emt 00:00:02]} 41. Kh3 {[%clk 00:00:31]} {[%emt
00:00:02]} Rxc2 {[%clk 00:00:08]} {[%emt 00:00:02]} 0-1

[Event "MČR v bleskovém šachu družstev 2019"]
[Site "Teplice, Czech Republic"]
[Date "2019.09.14"]
[Round "2.8"]
[White "Postupa, Pavel"]
[Black "Krouzel, Jaroslav"]
[Result "1-0"]
[TimeControl "3 mim. + 2 s"]
[WhiteFideId "326410"]
[BlackFideId "301566"]
[WhiteElo "2184"]
[BlackElo "2086"]

1. e4 {[%clk 00:03:03]} e6 {[%clk 00:03:03]} {[%emt 00:00:03]} 2. d4 {[%clk
00:03:03]} d5 {[%clk 00:03:04]} 3. Nd2 {[%clk 00:03:02]} {[%emt 00:00:04]} Nc6
{[%clk 00:03:05]} {[%emt 00:00:03]} 4. Ngf3 {[%clk 00:03:02]} {[%emt 00:00:01]}
Nf6 {[%clk 00:03:06]} {[%emt 00:00:01]} 5. e5 {[%clk 00:03:03]} Nd7 {[%clk
00:03:07]} {[%emt 00:00:01]} 6. Nb3 {[%clk 00:03:03]} {[%emt 00:00:03]} Be7
{[%clk 00:03:06]} {[%emt 00:00:02]} 7. a4 {[%clk 00:03:00]} {[%emt 00:00:05]}
a5 {[%clk 00:03:03]} {[%emt 00:00:04]} 8. Be2 {[%clk 00:03:02]} O-O {[%clk
00:03:02]} {[%emt 00:00:04]} 9. O-O {[%clk 00:03:02]} {[%emt 00:00:02]} b6
{[%clk 00:02:59]} {[%emt 00:00:05]} 10. Bb5 {[%clk 00:02:57]} {[%emt 00:00:07]}
Ncb8 {[%clk 00:02:58]} {[%emt 00:00:03]} 11. Re1 {[%clk 00:02:45]} {[%emt
00:00:16]} c6 {[%clk 00:02:56]} {[%emt 00:00:02]} 12. Bd3 {[%clk 00:02:46]} Ba6
{[%clk 00:02:56]} {[%emt 00:00:02]} 13. Bxa6 {[%clk 00:02:43]} {[%emt
00:00:06]} Nxa6 {[%clk 00:02:56]} {[%emt 00:00:03]} 14. c3 {[%clk 00:02:43]} c5
{[%clk 00:02:46]} {[%emt 00:00:14]} 15. Be3 {[%clk 00:02:38]} {[%emt 00:00:04]}
Rc8 {[%clk 00:02:39]} {[%emt 00:00:10]} 16. g3 {[%clk 00:02:37]} {[%emt
00:00:04]} cxd4 {[%clk 00:02:28]} {[%emt 00:00:13]} 17. Nbxd4 {[%clk 00:02:36]}
{[%emt 00:00:03]} Nac5 {[%clk 00:02:26]} {[%emt 00:00:04]} 18. Nb5 {[%clk
00:02:27]} {[%emt 00:00:12]} Ne4 {[%clk 00:02:15]} {[%emt 00:00:13]} 19. Bd4
{[%clk 00:02:21]} {[%emt 00:00:08]} Bc5 {[%clk 00:02:02]} {[%emt 00:00:15]} 20.
Nd2 {[%clk 00:02:19]} {[%emt 00:00:04]} Nxd2 {[%clk 00:01:47]} {[%emt
00:00:17]} 21. Qxd2 {[%clk 00:02:21]} Qe7 {[%clk 00:01:42]} {[%emt 00:00:07]}
22. Rac1 {[%clk 00:02:13]} {[%emt 00:00:10]} h6 {[%clk 00:01:39]} {[%emt
00:00:07]} 23. Red1 {[%clk 00:02:13]} Nb8 {[%clk 00:01:16]} {[%emt 00:00:27]}
24. c4 {[%clk 00:02:06]} {[%emt 00:00:08]} Rfd8 {[%clk 00:01:03]} {[%emt
00:00:14]} 25. Bxc5 {[%clk 00:02:03]} {[%emt 00:00:05]} Rxc5 {[%clk 00:01:00]}
{[%emt 00:00:05]} 26. b3 {[%clk 00:01:39]} {[%emt 00:00:26]} Rcc8 {[%clk
00:00:43]} {[%emt 00:00:19]} 27. Nd6 {[%clk 00:01:40]} {[%emt 00:00:02]} Rc5
{[%clk 00:00:34]} {[%emt 00:00:10]} 28. cxd5 {[%clk 00:01:37]} {[%emt
00:00:06]} Rxd5 {[%clk 00:00:33]} {[%emt 00:00:02]} 29. Qe3 {[%clk 00:01:38]}
{[%emt 00:00:01]} Rxd1+ {[%emt 00:00:15]} 30. Rxd1 Nd7 {[%clk 00:00:20]} {[%emt
00:00:01]} 31. f4 {[%clk 00:01:29]} {[%emt 00:00:13]} Nc5 {[%clk 00:00:21]} 32.
Rb1 {[%clk 00:01:23]} {[%emt 00:00:06]} Qd7 {[%clk 00:00:19]} {[%emt 00:00:05]}
33. b4 {[%clk 00:01:11]} {[%emt 00:00:14]} Nxa4 {[%clk 00:00:12]} {[%emt
00:00:09]} 34. bxa5 {[%clk 00:01:12]} {[%emt 00:00:02]} bxa5 {[%clk 00:00:13]}
{[%emt 00:00:01]} 35. Ra1 {[%clk 00:01:07]} {[%emt 00:00:07]} Rb8 {[%clk
00:00:09]} {[%emt 00:00:06]} 36. Qd4 {[%emt 00:00:16]} 1-0

[Event "MČR v bleskovém šachu družstev 2019"]
[Site "Teplice, Czech Republic"]
[Date "2019.09.14"]
[Round "2.9"]
[White "Vanecek, Jiri"]
[Black "Liska, Jiri"]
[Result "0-1"]
[TimeControl "3 mim. + 2 s"]
[BlackTitle "FM"]
[WhiteFideId "305332"]
[WhiteElo "1999"]
[BlackElo "2241"]

1. e4 {[%clk 00:03:02]} c5 {[%clk 00:03:02]} {[%emt 00:00:02]} 2. Nf3 {[%clk
00:03:03]} {[%emt 00:00:02]} Nc6 {[%clk 00:03:02]} {[%emt 00:00:02]} 3. d4
{[%clk 00:03:04]} {[%emt 00:00:01]} cxd4 {[%clk 00:03:03]} {[%emt 00:00:01]} 4.
Nxd4 {[%clk 00:03:05]} {[%emt 00:00:01]} Nf6 {[%clk 00:03:03]} 5. Nc3 {[%clk
00:02:59]} {[%emt 00:00:08]} e5 {[%clk 00:03:04]} {[%emt 00:00:01]} 6. Nxc6
{[%clk 00:02:48]} {[%emt 00:00:13]} bxc6 {[%clk 00:03:01]} {[%emt 00:00:05]} 7.
Bg5 {[%clk 00:02:32]} {[%emt 00:00:18]} h6 {[%clk 00:02:58]} {[%emt 00:00:05]}
8. Bh4 {[%clk 00:02:32]} {[%emt 00:00:03]} Be7 {[%clk 00:02:55]} {[%emt
00:00:06]} 9. Bg3 {[%clk 00:01:42]} {[%emt 00:00:52]} d6 {[%clk 00:02:48]}
{[%emt 00:00:08]} 10. Bc4 {[%clk 00:01:33]} {[%emt 00:00:11]} Rb8 {[%clk
00:02:49]} {[%emt 00:00:02]} 11. Bb3 {[%clk 00:01:23]} {[%emt 00:00:12]} Ba6
{[%clk 00:02:43]} {[%emt 00:00:07]} 12. Qd2 {[%clk 00:00:57]} {[%emt 00:00:28]}
Nh5 {[%clk 00:02:35]} {[%emt 00:00:10]} 13. Ne2 {[%clk 00:00:41]} {[%emt
00:00:19]} Bg5 {[%clk 00:02:26]} {[%emt 00:00:10]} 14. f4 {[%clk 00:00:26]}
{[%emt 00:00:17]} exf4 {[%clk 00:02:07]} {[%emt 00:00:21]} 15. Nxf4 {[%clk
00:00:18]} {[%emt 00:00:10]} O-O {[%clk 00:02:03]} {[%emt 00:00:06]} 16. c4
{[%clk 00:00:00]} {[%emt 00:00:32]} 0-1